bitfinex-derivatives/quotes_SOLF0:USTF0_20220109
["timestamp","ask_amount","ask_price","bid_price","bid_amount"]
[1641697536281,34.25679,143.4,143.34,2.6468333]
[1641697536683,34.25679,143.4,143.31,133.8088]
[1641697536883,34.25679,143.4,143.31,68.1765]
[1641697537083,4.0,143.39,143.31,68.1765]
[1641697537283,4.0,143.38,143.3,27.66479]
[1641697537486,4.0,143.39,143.32,2.64794367]
[1641697537683,38.25679,143.4,143.32,2.64794367]
[1641697538684,34.25679,143.4,143.31,2.64794367]
[1641697539384,38.25679,143.4,143.31,2.64794367]
[1641697541384,38.25679,143.4,143.3,2.64794367]
[1641697541787,4.0,143.39,143.3,2.64794367]
[1641697542386,4.0,143.38,143.3,2.64794367]
[1641697542990,4.0,143.31,143.3,4.367e-05]
[1641697543189,10.306,143.31,143.21,70.86425914]
[1641697543388,4.0,143.3,143.21,70.86425914]
[1641697543788,4.0,143.3,143.21,6.98055914]
[1641697543989,27.66479,143.29,143.21,6.98055914]
[1641697544390,31.66479,143.29,143.21,6.98055914]
[1641697544590,31.66479,143.29,143.19,27.66479]
[1641697544790,4.0,143.27,143.19,27.66479]
[1641697545092,7.745,143.27,143.17,6.98250882]
[1641697545991,7.745,143.27,143.17,34.64729882]
[1641697547995,27.66479,143.26,143.17,34.64729882]
[1641697548194,27.66479,143.26,143.17,27.66479]
[1641697549896,27.66479,143.26,143.18,4.0]
[1641697550097,27.66479,143.26,143.19,6.98177756]
[1641697550296,27.66479,143.29,143.19,10.98177756]
[1641697550499,62.0422,143.33,143.19,18.66877756]
[1641697550698,62.0422,143.33,143.21,4.0]
[1641697550897,14.80196456,143.34,143.23,10.97958471]
[1641697551098,62.2358,143.38,143.23,10.97958471]
[1641697551298,62.2358,143.38,143.23,75.12608471]
[1641697551500,62.2358,143.38,143.23,73.38208471]
[1641697552098,89.90059,143.38,143.26,27.66479]
[1641697553403,89.90059,143.38,143.26,33.80479]
[1641697554503,93.90059,143.38,143.26,33.80479]
[1641697554803,89.90059,143.38,143.26,27.66479]
[1641697555604,89.90059,143.38,143.28,6.97739325]
[1641697555805,93.90059,143.38,143.28,6.97739325]
[1641697556003,4.0,143.37,143.26,27.66479]
[1641697556405,27.66479,143.34,143.26,27.66479]
[1641697556606,35.14079,143.34,143.26,27.66479]
[1641697559709,39.14079,143.34,143.24,99.4161876]
[1641697559908,39.14079,143.34,143.23,66.4025]
[1641697560110,4.0,143.33,143.21,6.98055914]
[1641697560309,27.66479,143.31,143.21,6.98055914]
[1641697560513,33.16979,143.31,143.21,6.98055914]
[1641697561512,33.16979,143.31,143.2,94.51399]
[1641697562411,33.16979,143.31,143.22,4.0]
[1641697562612,33.16979,143.31,143.21,6.98055914]
[1641697562811,33.16979,143.31,143.22,6.98007189]
[1641697563512,33.16979,143.31,143.25,6.97885407]
[1641697563712,27.66479,143.31,143.25,6.97885407]
[1641697564412,91.01789,143.37,143.26,27.66479]
[1641697564611,91.01789,143.37,143.26,36.20679]
[1641697572924,91.01789,143.37,143.27,10.3425501]
[1641697573525,27.66479,143.37,143.27,10.3425501]
[1641697574527,27.66479,143.37,143.29,6.97690644]
[1641697575028,31.66479,143.37,143.29,6.97690644]
[1641697575227,4.0,143.36,143.26,44.98570716]
[1641697575426,4.0,143.36,143.26,10.3425501]
[1641697575630,4.0,143.36,143.27,10.3425501]
[1641697576028,4.0,143.35,143.27,10.3425501]
[1641697576428,4.0,143.35,143.25,27.66479]
[1641697576628,27.66479,143.33,143.25,27.66479]
[1641697576828,35.52679,143.33,143.25,27.66479]
[1641697577028,35.52679,143.33,143.24,62.9966]
[1641697577429,35.52679,143.33,143.22,68.30121551]
[1641697577828,39.52679,143.33,143.22,68.30121551]
[1641697578628,67.19158,143.33,143.22,68.30121551]
[1641697579132,4.0,143.31,143.22,68.30121551]
[1641697579330,63.19158,143.33,143.21,88.05179]
[1641697579331,4.0,143.29,143.21,88.05179]
[1641697579631,4.0,143.27,143.21,27.66479]
[1641697579829,4.0,143.28,143.17,65.696]
[1641697580432,4.0,143.27,143.2,10.36461542]
[1641697580632,27.66479,143.23,143.2,10.36461542]
[1641697580832,33.44679,143.23,143.2,10.36461542]
[1641697581632,33.44679,143.23,143.17,10.36461542]
[1641697583235,33.44679,143.23,143.16,17.34785564]
[1641697583943,37.44679,143.23,143.16,10.36461542]
[1641697584338,37.44679,143.23,143.17,2.64801534]
[1641697584538,4.0,143.22,143.17,2.64801534]
[1641697585038,33.44679,143.23,143.17,2.64801534]
[1641697585640,33.44679,143.23,143.11,27.66479]
[1641697585840,4.0,143.21,143.11,27.66479]
[1641697586144,33.44679,143.23,143.11,27.66479]
[1641697586741,33.44679,143.23,143.12,2.64801534]
[1641697587940,33.44679,143.23,143.12,13.01263076]
[1641697589144,33.44679,143.23,143.12,17.01263076]
[1641697589544,33.44679,143.23,143.12,13.01263076]
[1641697589744,27.66479,143.23,143.15,6.98372791]
[1641697589944,27.66479,143.23,143.15,13.31372791]
[1641697590545,27.66479,143.23,143.16,2.64801534]
[1641697590949,27.66479,143.23,143.18,27.66479]
[1641697591147,38.04479,143.28,143.18,27.66479]
[1641697592347,42.04479,143.28,143.18,27.66479]
[1641697592550,38.04479,143.28,143.19,2.64801534]
[1641697592748,42.04479,143.28,143.19,2.64801534]
[1641697593548,38.04479,143.28,143.18,27.66479]
[1641697593748,46.75479,143.28,143.18,27.66479]
[1641697594251,36.37479,143.28,143.18,27.66479]
[1641697595250,36.37479,143.28,143.19,2.6388444]
[1641697595449,8.71,143.28,143.19,2.6388444]
[1641697595650,61.8725,143.3,143.19,11.0758444]
[1641697595850,61.8725,143.3,143.2,4.0]
[1641697596452,6.98250882,143.33,143.2,4.0]
[1641697596651,72.31630882,143.33,143.2,4.0]
[1641697596853,27.66479,143.32,143.22,27.66479]
[1641697597051,4.0,143.31,143.22,27.66479]
[1641697597450,4.0,143.31,143.21,2.6388444]
[1641697597651,4.0,143.3,143.18,27.66479]
[1641697598151,4.0,143.29,143.18,27.66479]
[1641697598353,10.294,143.29,143.18,27.66479]
[1641697598754,10.294,143.29,143.19,2.64038514]
[1641697599053,31.66479,143.28,143.19,2.64038514]
[1641697600556,31.66479,143.28,143.16,63.6063]
[1641697600756,91.81599,143.28,143.16,63.6063]
[1641697600957,4.0,143.24,143.16,63.6063]
[1641697601157,10.46,143.24,143.15,27.66479]
[1641697601358,6.46,143.24,143.15,27.66479]
[1641697601559,6.46,143.24,143.17,2.64298712]
[1641697601758,10.46,143.24,143.17,2.64298712]
[1641697602261,4.0,143.23,143.12,91.88859]
[1641697602758,6.46,143.24,143.12,91.88859]
[1641697602959,4.0,143.15,143.08,6.98689956]
[1641697603159,7.266,143.15,143.06,152.4633]
[1641697603369,7.266,143.15,143.13,2.64534026]
[1641697603762,7.266,143.15,143.13,4.026e-05]
[1641697603961,7.266,143.15,143.05,191.33724808]
[1641697604262,7.266,143.15,143.05,184.34863951]
[1641697604463,7.266,143.15,143.05,122.69683951]
[1641697604663,7.266,143.15,143.06,10.3290237]
[1641697604861,34.93079,143.15,143.06,37.9938137]
[1641697606062,34.93079,143.15,143.06,44.9819339]
[1641697606263,1.746,143.18,143.06,53.5219339]
[1641697606462,14.80196456,143.22,143.13,6.98445958]
[1641697606664,14.80196456,143.25,143.17,6.9827526]
[1641697606863,14.80196456,143.25,143.17,15.7767526]
[1641697606864,27.66479,143.22,143.17,15.7767526]
[1641697607363,27.66479,143.22,143.17,8.794]
[1641697607565,35.10679,143.22,143.17,8.794]
[1641697607763,35.10679,143.22,143.15,27.66479]
[1641697609463,27.66479,143.22,143.15,27.66479]
[1641697609864,1.745,143.24,143.15,27.66479]
[1641697610067,27.66479,143.25,143.15,27.66479]
[1641697610669,27.66479,143.25,143.16,6.98324022]
[1641697611167,14.80196456,143.29,143.18,27.66479]
[1641697611566,14.80196456,143.29,143.2,6.98129014]
[1641697611767,83.22776456,143.31,143.2,6.98129014]
[1641697611967,79.22776456,143.31,143.2,6.98129014]
[1641697612169,83.22776456,143.31,143.16,80.48572827]
[1641697612369,4.0,143.3,143.16,80.48572827]
[1641697612667,4.0,143.3,143.16,70.1436964]
[1641697613067,27.66479,143.25,143.16,70.1436964]
[1641697613266,35.12279,143.25,143.16,6.9829964]
[1641697615967,35.12279,143.25,143.15,27.66479]
[1641697617068,27.66479,143.22,143.15,27.66479]
[1641697617967,35.56579,143.22,143.15,27.66479]
[1641697621771,4.0,143.19,143.13,27.66479]
[1641697621972,10.536,143.19,143.07,59.8099]
[1641697622172,6.536,143.19,143.07,59.8099]
[1641697622372,6.536,143.19,143.09,6.98665549]
[1641697623175,27.66479,143.18,143.1,27.66479]
[1641697623375,6.536,143.19,143.1,27.66479]
[1641697623780,27.66479,143.22,143.12,10.98519139]
[1641697623976,27.66479,143.22,143.13,4.0]
[1641697624176,27.66479,143.22,143.14,4.0]
[1641697624378,27.66479,143.22,143.13,4.0]
[1641697624577,27.66479,143.22,143.14,4.0]
[1641697625181,27.66479,143.22,143.17,27.66479]
[1641697625379,27.66479,143.27,143.17,27.66479]
[1641697626384,27.66479,143.27,143.17,34.6475426]
[1641697627183,63.3506,143.29,143.2,27.66479]
[1641697627383,63.3506,143.29,143.2,34.64608014]
[1641697627583,27.66479,143.31,143.2,34.64608014]
[1641697629388,27.66479,143.31,143.23,27.66479]
[1641697629989,27.66479,143.32,143.23,31.66479]
[1641697630189,61.872,143.33,143.25,4.0]
[1641697630393,14.80196456,143.35,143.25,5.843]
[1641697630589,14.80196456,143.35,143.26,4.0]
[1641697630990,14.80196456,143.35,143.25,5.843]
[1641697631391,27.66479,143.36,143.28,27.66479]
[1641697631591,14.80196456,143.39,143.29,4.0]
[1641697631791,14.80196456,143.39,143.28,33.67779]
[1641697632392,14.80196456,143.41,143.28,33.67779]
[1641697632591,18.80196456,143.41,143.28,27.66479]
[1641697632992,4.0,143.4,143.28,27.66479]
[1641697633191,4.0,143.39,143.28,27.66479]
[1641697633394,27.66479,143.33,143.27,6.97763667]
[1641697634194,27.66479,143.33,143.23,116.14168]
[1641697634394,27.66479,143.33,143.24,6.9790976]
[1641697638799,4.0,143.32,143.23,60.8121]
[1641697638999,4.0,143.32,143.21,6.98080279]
[1641697639298,4.0,143.31,143.21,6.98080279]
[1641697639499,27.66479,143.28,143.21,6.98080279]
[1641697639699,36.14479,143.28,143.21,6.98080279]
[1641697639901,36.14479,143.28,143.19,27.66479]
[1641697642202,36.14479,143.28,143.23,6.9798283]
[1641697642404,27.66479,143.28,143.23,6.9798283]
[1641697642803,27.66479,143.33,143.23,6.9798283]
[1641697643503,27.66479,143.33,143.24,27.66479]
[1641697645507,27.66479,143.33,143.23,6.9798283]
[1641697645707,39.70579,143.33,143.21,70.10895914]
[1641697646311,4.0,143.32,143.21,70.10895914]
[1641697646508,4.0,143.31,143.21,70.10895914]
[1641697646709,4.0,143.32,143.21,70.10895914]
[1641697647410,27.66479,143.3,143.21,70.10895914]
[1641697647609,35.66679,143.3,143.21,70.10895914]
[1641697648011,39.66679,143.3,143.21,63.1284]
[1641697648213,39.66679,143.3,143.19,34.64656756]
[1641697648513,39.66679,143.3,143.18,63.917]
[1641697648913,4.0,143.28,143.18,63.917]
[1641697649315,65.7481,143.29,143.18,63.917]
[1641697649514,4.0,143.24,143.19,2.64473619]
[1641697649717,7.038,143.24,143.19,2.64473619]
[1641697650517,11.038,143.24,143.16,2.64473619]
[1641697650918,7.038,143.24,143.16,2.64473619]
[1641697651520,7.038,143.24,143.17,27.66479]
[1641697652221,7.038,143.24,143.18,2.64473619]
[1641697654924,27.66479,143.27,143.18,2.64473619]
[1641697655925,65.7481,143.29,143.18,2.64473619]
[1641697656125,65.7481,143.29,143.18,11.46473619]
[1641697656925,65.7481,143.29,143.19,4.0]
[1641697657126,65.7481,143.29,143.2,6.98129014]
[1641697657325,65.7481,143.29,143.2,10.98129014]
[1641697657525,65.7481,143.29,143.2,6.98129014]
[1641697657724,65.7481,143.29,143.22,27.66479]
[1641697657925,27.66479,143.3,143.22,27.66479]
[1641697658527,4.0,143.29,143.21,2.64473619]
[1641697658726,27.66479,143.3,143.21,2.64473619]
[1641697658727,4.0,143.28,143.21,2.64473619]
[1641697658928,4.0,143.27,143.21,2.64473619]
[1641697659127,9.519,143.27,143.21,2.64473619]
[1641697659527,5.519,143.27,143.21,2.64473619]
[1641697660127,5.519,143.27,143.18,2.64473619]
[1641697660928,5.519,143.27,143.18,12.99477578]
[1641697661827,33.18379,143.27,143.18,2.64473619]
[1641697662728,33.18379,143.27,143.18,12.99875789]
[1641697663830,33.18379,143.27,143.2,27.66479]
[1641697664531,33.18379,143.27,143.21,2.64473619]
[1641697668236,4.0,143.25,143.21,2.64473619]
[1641697668636,4.0,143.24,143.18,12.99875789]
[1641697668836,11.713,143.24,143.18,12.99875789]
[1641697669135,7.713,143.24,143.18,12.99875789]
[1641697669737,7.713,143.24,143.16,12.99875789]
[1641697669937,35.37779,143.24,143.16,12.99875789]
[1641697670939,35.37779,143.24,143.15,12.99875789]
[1641697671341,39.37779,143.24,143.15,12.99875789]
[1641697672643,35.37779,143.24,143.15,12.99875789]
[1641697677246,35.37779,143.24,143.15,28.37916204]
[1641697678149,35.37779,143.24,143.15,12.99875789]
[1641697679850,4.0,143.23,143.15,12.99875789]
[1641697680252,39.37779,143.24,143.15,12.99875789]
[1641697680452,4.0,143.23,143.15,12.99875789]
[1641697680852,4.0,143.22,143.15,2.64473619]
[1641697681550,6.28805236,143.23,143.15,2.64473619]
[1641697681751,4.0,143.22,143.15,2.64473619]
[1641697681952,4.0,143.23,143.15,2.64473619]
[1641697682455,67.04258,143.24,143.15,2.64473619]
[1641697682856,4.0,143.22,143.15,2.64473619]
[1641697683757,2.28689787,143.23,143.15,2.64473619]
[1641697684257,2.28689787,143.23,143.15,30.30952619]
[1641697684856,2.28689787,143.23,143.15,34.30952619]
[1641697685057,2.28689787,143.23,143.15,30.30952619]
[1641697685858,55.32958,143.24,143.15,30.30952619]
[1641697686057,55.32958,143.24,143.16,2.64473619]
[1641697688762,78.57846456,143.26,143.16,10.19173619]
[1641697689663,14.80196456,143.26,143.18,6.98226505]
[1641697690064,14.80196456,143.28,143.18,6.98226505]
[1641697690462,14.80196456,143.28,143.21,27.66479]
[1641697690865,14.80196456,143.28,143.21,34.64559279]
[1641697691464,2.28569962,143.28,143.21,27.66479]
[1641697692266,2.28569962,143.28,143.22,2.64473619]
[1641697693869,2.28569962,143.28,143.19,2.64473619]
[1641697695169,6.28569962,143.28,143.19,2.64473619]
[1641697695570,2.28569962,143.28,143.19,2.64473619]
[1641697696069,6.28569962,143.28,143.19,2.64473619]
[1641697696471,27.66479,143.27,143.19,2.64473619]
[1641697696670,32.99479,143.27,143.19,2.64473619]
[1641697697170,2.28569962,143.26,143.19,2.64473619]
[1641697697970,32.99479,143.27,143.19,2.64473619]
[1641697699375,36.99479,143.27,143.19,2.64473619]
[1641697699576,4.0,143.26,143.19,2.64473619]
[1641697699776,32.99479,143.27,143.19,2.64473619]
[1641697700675,2.28712373,143.26,143.19,2.64473619]
[1641697703682,4.0,143.24,143.19,2.64473619]
[1641697703881,4.0,143.21,143.19,2.64473619]
[1641697704083,7.582,143.21,143.19,0.00473619]
[1641697704683,27.66479,143.2,143.19,0.00473619]
[1641697705084,27.66479,143.2,143.11,127.2834]
[1641697705285,27.66479,143.2,143.11,63.736]
[1641697706185,27.66479,143.2,143.12,10.37239945]
[1641697706484,80.56466456,143.24,143.13,6.98445958]
[1641697706687,108.22945456,143.24,143.13,34.64924958]
[1641697706886,108.22945456,143.24,143.16,6.9829964]
[1641697707286,108.22945456,143.24,143.16,15.3539964]
[1641697707486,93.42749,143.24,143.16,15.3539964]
[1641697708388,93.42749,143.24,143.16,8.371]
[1641697708588,93.42749,143.24,143.14,17.35637123]
[1641697710194,97.42749,143.24,143.14,17.35637123]
[1641697710392,97.42749,143.24,143.14,10.37239945]
[1641697710594,27.66479,143.21,143.14,10.37239945]
[1641697710792,35.64579,143.21,143.14,10.37239945]
[1641697711292,35.64579,143.21,143.13,27.66479]
[1641697713695,93.42749,143.24,143.14,6.98397178]
[1641697713895,93.42749,143.24,143.14,13.90497178]
[1641697714697,27.66479,143.24,143.16,27.66479]
[1641697714897,27.66479,143.27,143.19,6.98153384]
[1641697715097,27.66479,143.27,143.19,13.72253384]
[1641697715996,14.80196456,143.28,143.19,13.72253384]
[1641697716198,65.7957,143.29,143.19,13.72253384]
[1641697716598,65.7957,143.29,143.19,17.72253384]
[1641697716800,65.7957,143.29,143.21,27.66479]
[1641697719402,65.7957,143.29,143.19,6.98153384]
[1641697719601,71.5557,143.29,143.19,6.98153384]
[1641697720605,75.5557,143.29,143.19,6.98153384]
[1641697720804,27.66479,143.27,143.17,70.9265526]
[1641697727409,27.66479,143.27,143.17,63.9438]
[1641697727609,4.0,143.25,143.17,63.9438]
[1641697727810,11.28,143.25,143.16,27.66479]
[1641697728011,7.28,143.25,143.16,27.66479]
[1641697728211,11.28,143.25,143.16,27.66479]
[1641697728811,27.66479,143.24,143.16,27.66479]
[1641697729719,27.66479,143.24,143.14,127.3657]
[1641697729911,92.99319,143.24,143.14,63.2611]
[1641697730314,92.99319,143.24,143.13,70.3489035]
[1641697732916,92.99319,143.24,143.14,10.36741394]
[1641697735619,96.99319,143.24,143.14,10.36741394]
[1641697736819,124.65798,143.24,143.14,10.36741394]
[1641697737722,120.65798,143.24,143.14,10.36741394]
[1641697737921,14.80196456,143.26,143.17,6.9827526]
[1641697738121,14.80196456,143.26,143.17,15.3877526]
[1641697738522,14.80196456,143.27,143.17,15.3877526]
[1641697738923,14.80196456,143.27,143.2,27.66479]
[1641697739122,14.80196456,143.27,143.18,65.1727]
[1641697739322,21.50496456,143.27,143.18,65.1727]
[1641697739722,6.703,143.27,143.18,65.1727]
[1641697739923,4.0,143.26,143.18,65.1727]
[1641697740326,6.703,143.27,143.18,65.1727]
[1641697740524,10.703,143.27,143.18,65.1727]
[1641697740925,27.66479,143.24,143.18,65.1727]
[1641697741126,33.17679,143.24,143.17,6.9827526]
[1641697744626,14.80196456,143.27,143.17,6.9827526]
[1641697744826,14.80196456,143.27,143.17,13.2327526]
[1641697745226,27.66479,143.28,143.18,2.65424377]
[1641697745227,42.46675456,143.28,143.18,2.65424377]
[1641697745429,46.46675456,143.28,143.18,2.65424377]
[1641697745929,2.28695063,143.27,143.18,2.65424377]
[1641697748732,2.28695063,143.27,143.2,4.0]
[1641697749032,2.28695063,143.27,143.25,27.66479]
[1641697749233,14.80196456,143.31,143.25,6.824]
[1641697749434,4.0,143.3,143.25,6.824]
[1641697749631,6.275,143.3,143.22,6.98031551]
[1641697750435,2.28695063,143.29,143.21,64.787]
[1641697750833,2.28695063,143.29,143.2,6.98104646]
[1641697750834,27.66479,143.28,143.2,6.98104646]
[1641697751234,27.66479,143.28,143.18,27.66479]
[1641697751434,2.28695063,143.27,143.21,2.65642588]
[1641697751634,7.97995063,143.27,143.21,2.65642588]
[1641697752733,2.28695063,143.26,143.19,2.65642588]
[1641697755034,5.693,143.27,143.19,2.65642588]
[1641697755435,9.693,143.27,143.19,2.65642588]
[1641697755635,5.693,143.27,143.19,2.65642588]
[1641697756035,2.28847625,143.26,143.19,2.65642588]
[1641697756435,2.28847625,143.26,143.19,9.63795972]
[1641697756637,5.693,143.27,143.19,9.63795972]
[1641697756836,27.66479,143.28,143.19,6.98153384]
[1641697757838,2.2887262,143.27,143.2,2.65642588]
[1641697759143,9.8737262,143.27,143.2,2.65642588]
[1641697760243,2.2887262,143.26,143.2,2.65642588]
[1641697761742,42.46675456,143.28,143.2,2.65642588]
[1641697761944,27.66479,143.28,143.17,17.0370386]
[1641697762344,27.66479,143.28,143.19,4.0]
[1641697762645,27.66479,143.28,143.2,4.0]
[1641697762847,2.2882149,143.27,143.2,4.0]
[1641697763046,2.2882149,143.27,143.2,31.66479]
[1641697763547,2.2882149,143.27,143.2,27.66479]
[1641697763846,6.513,143.27,143.2,27.66479]
[1641697764046,6.513,143.27,143.21,2.65642588]
[1641697765748,2.28927395,143.26,143.21,2.65642588]
[1641697768453,2.28927395,143.26,143.2,2.65642588]
[1641697769154,27.66479,143.25,143.2,2.65642588]
[1641697770053,27.66479,143.25,143.18,6.9820213]
[1641697770757,27.66479,143.25,143.19,2.65642588]
[1641697772757,4.0,143.24,143.19,2.588e-05]
[1641697772958,4.0,143.21,143.17,10.38859132]
[1641697773157,4.0,143.2,143.11,58.78313951]
[1641697773357,27.66479,143.19,143.11,58.78313951]
[1641697774158,27.66479,143.19,143.09,76.47236791]
[1641697775358,27.66479,143.19,143.09,61.067]
[1641697776159,31.66479,143.19,143.09,61.067]
[1641697776564,27.66479,143.19,143.09,61.067]
[1641697776960,31.66479,143.19,143.09,61.067]
[1641697777161,27.66479,143.19,143.09,61.067]
[1641697777361,27.66479,143.16,143.09,61.067]
[1641697778563,27.66479,143.16,143.1,4.0]
[1641697778863,14.80196456,143.22,143.11,4.0]
[1641697779264,14.80196456,143.22,143.1,12.676]
[1641697779464,42.46675456,143.22,143.13,27.66479]
[1641697779865,42.46675456,143.22,143.09,68.05341143]
[1641697780064,35.72579,143.22,143.09,68.05341143]
[1641697780866,39.72579,143.22,143.09,68.05341143]
[1641697781267,35.72579,143.22,143.09,68.05341143]
[1641697781467,27.66479,143.19,143.09,68.05341143]
[1641697782270,27.66479,143.19,143.09,72.05341143]
[1641697782669,27.66479,143.19,143.09,68.05341143]
[1641697783471,27.66479,143.19,143.11,27.66479]
[1641697785674,13.69821689,143.19,143.11,27.66479]
[1641697790080,21.14121689,143.19,143.11,27.66479]
[1641697790979,21.14121689,143.19,143.11,36.15179]
[1641697791179,27.66479,143.22,143.13,4.0]
[1641697791482,60.9444,143.23,143.12,4.0]
[1641697791679,60.9444,143.23,143.13,4.0]
[1641697791978,42.46675456,143.27,143.15,34.64827406]
[1641697792179,78.25456456,143.27,143.16,61.9294]
[1641697792379,78.25456456,143.27,143.18,6.9820213]
[1641697792579,78.25456456,143.27,143.18,14.1530213]
[1641697792979,63.4526,143.27,143.18,14.1530213]
[1641697793983,63.4526,143.27,143.18,41.8178113]
[1641697795683,70.43803537,143.27,143.15,27.66479]
[1641697795883,27.66479,143.22,143.12,27.66479]
[1641697796183,33.15479,143.22,143.12,90.52749]
[1641697798187,37.15479,143.22,143.12,90.52749]
[1641697798488,33.15479,143.22,143.12,90.52749]
[1641697798687,37.15479,143.22,143.12,90.52749]
[1641697799089,4.0,143.21,143.12,90.52749]
[1641697799888,27.66479,143.19,143.12,27.66479]
[1641697800188,35.66779,143.19,143.12,27.66479]
[1641697800788,4.0,143.13,143.09,27.66479]
[1641697800997,11.625,143.13,143.04,64.8542]
[1641697801188,7.625,143.13,143.04,64.8542]
[1641697801890,27.66479,143.12,143.05,27.66479]
[1641697803889,27.66479,143.14,143.05,55.32958]
[1641697805692,31.66479,143.14,143.05,55.32958]
[1641697805993,4.0,143.13,143.05,55.32958]
[1641697806193,10.617,143.13,143.05,55.32958]
[1641697806397,10.617,143.13,143.04,64.8542]
[1641697807297,10.617,143.13,143.03,6.98958552]
[1641697807497,10.617,143.13,143.0,4.0]
[1641697807697,60.1327,143.12,143.01,62.8376]
[1641697808099,60.1327,143.12,143.02,27.66479]
[1641697808299,64.1327,143.12,143.02,27.66479]
[1641697808799,60.1327,143.12,143.02,27.66479]
[1641697812206,60.1327,143.12,143.02,31.66479]
[1641697812407,55.32958,143.14,143.02,31.66479]
[1641697812607,120.25268,143.14,143.02,31.66479]
[1641697812807,64.9231,143.14,143.05,4.0]
[1641697813009,62.5164,143.17,143.05,7.725]
[1641697813307,80.4444,143.22,143.09,6.98665549]
[1641697813507,63.8082,143.21,143.09,6.98665549]
[1641697814207,27.66479,143.19,143.1,2.64163245]
[1641697814707,38.50979,143.19,143.1,2.64163245]
[1641697814908,4.0,143.18,143.1,2.64163245]
[1641697815308,4.0,143.18,143.07,27.66479]
[1641697815508,63.147,143.17,143.07,27.66479]
[1641697816108,27.66479,143.15,143.07,27.66479]
[1641697816308,4.0,143.13,143.07,27.66479]
[1641697816510,33.53879,143.15,143.06,63.7506]
[1641697817214,37.53879,143.15,143.06,63.7506]
[1641697817412,4.0,143.14,143.06,63.7506]
[1641697818216,27.66479,143.12,143.06,63.7506]
[1641697819513,34.88479,143.12,143.06,63.7506]
[1641697822615,27.66479,143.12,143.06,63.7506]
[1641697823817,27.66479,143.15,143.06,63.7506]
[1641697824020,27.66479,143.15,143.07,6.98738777]
[1641697824216,14.80196456,143.2,143.07,6.98738777]
[1641697824217,27.66479,143.19,143.07,34.65217777]
[1641697824417,27.66479,143.19,143.07,37.29720691]
[1641697825517,27.66479,143.19,143.08,13.00076837]
[1641697825917,4.0,143.18,143.08,13.00076837]
[1641697826118,9.37,143.18,143.08,13.00076837]
[1641697826319,5.37,143.18,143.08,13.00076837]
[1641697827320,9.37,143.18,143.08,2.64502914]
[1641697827518,2.28559305,143.17,143.08,2.64502914]
[1641697828921,2.28559305,143.17,143.08,6.64502914]
[1641697829421,2.28559305,143.17,143.1,6.98592336]
[1641697829621,2.28559305,143.17,143.1,14.40592336]
[1641697830023,14.80196456,143.19,143.1,14.40592336]
[1641697830223,88.44889,143.21,143.11,2.64502914]
[1641697830424,88.44889,143.21,143.12,27.66479]
[1641697830924,27.66479,143.21,143.12,27.66479]
[1641697831129,14.80196456,143.24,143.13,2.64502914]
[1641697831428,14.80196456,143.24,143.14,10.98421567]
[1641697831829,18.80196456,143.24,143.14,6.98421567]
[1641697832028,6.2860311,143.24,143.15,2.64502914]
[1641697832229,2.2860311,143.24,143.15,2.64502914]
[1641697832528,29.9508211,143.24,143.16,27.66479]
[1641697833128,27.66479,143.24,143.15,63.18552914]
[1641697833429,39.42879,143.24,143.15,63.18552914]
[1641697833627,39.42879,143.24,143.15,2.64502914]
[1641697833828,39.42879,143.24,143.12,93.52709]
[1641697834033,2.2860311,143.23,143.13,61.8185]
[1641697834433,2.2860311,143.23,143.16,27.66479]
[1641697836540,35.42879,143.24,143.16,27.66479]
[1641697837135,39.42879,143.24,143.13,61.8185]
[1641697837436,62.0171,143.23,143.13,61.8185]
[1641697837833,66.0171,143.23,143.13,61.8185]
[1641697838234,4.0,143.22,143.13,61.8185]
[1641697838635,27.66479,143.21,143.13,61.8185]